fUSD/lending_fUSD_20260409
["ID","MTS","AMOUNT","RATE_DAILY","PERIOD"]
[420138967,1775712640867,-500.0,0.00012167,2]
[420138968,1775712640876,-500.0,0.00012167,2]
[420138969,1775712640886,-500.0,0.00012167,2]
[420138970,1775712640895,-500.0,0.00012167,2]
[420138971,1775712640904,-500.0,0.00012167,2]
[420138972,1775712640914,-500.0,0.00012167,2]
[420138973,1775712640923,-500.0,0.00012167,2]
[420138974,1775712640932,-500.0,0.00012167,2]
[420138975,1775712640941,-500.0,0.00012167,2]
[420138976,1775712640950,-500.0,0.00012167,2]
[420138977,1775712640959,-500.0,0.00012167,2]
[420138978,1775712640969,-500.0,0.00012167,2]
[420138979,1775712640978,-500.0,0.00012167,2]
[420138980,1775712640987,-500.0,0.00012167,2]
[420138981,1775712640997,-500.0,0.00012167,2]
[420138982,1775712641007,-500.0,0.00012167,2]
[420138983,1775712641016,-500.0,0.00012167,2]
[420138984,1775712641025,-500.0,0.00012167,2]
[420138985,1775712641035,-500.0,0.00012167,2]
[420138986,1775712641044,-500.0,0.00012167,2]
[420138987,1775712641053,-91982.8879,0.00012168,2]
[420138988,1775712641062,-1253.0098,0.00012168,2]
[420138989,1775712641071,-7583.7320342,0.00012168,2]
[420138990,1775712641081,-7511.11443606,0.00012173,2]
[420138991,1775712641090,-4168.90890187,0.00012173,2]
[420138992,1775712641099,-151.0,0.0001226,2]
[420138993,1775712641107,-151.0,0.0001226,2]
[420138994,1775712641117,-151.0,0.0001226,2]
[420138995,1775712641126,-151.0,0.0001226,2]
[420138996,1775712641135,-151.0,0.0001226,2]
[420138997,1775712641144,-151.0,0.0001226,2]
[420138998,1775712641153,-151.0,0.0001226,2]
[420138999,1775712641163,-151.0,0.0001226,2]
[420139001,1775712641171,-151.0,0.0001226,2]
[420139003,1775712641181,-151.0,0.00012265,2]
[420139005,1775712641190,-151.0,0.00012265,2]
[420139007,1775712641198,-500.0,0.00012267,2]
[420139008,1775712641207,-500.0,0.00012267,2]
[420139009,1775712641216,-393.15921875,0.00012267,2]
[420139010,1775712641226,-500.0,0.00012267,2]
[420139011,1775712641234,-347.10200047,0.00012267,2]
[420139012,1775712641243,-500.0,0.00012267,2]
[420139013,1775712641253,-500.0,0.00012267,2]
[420139014,1775712641262,-500.0,0.00012267,2]
[420139015,1775712641271,-500.0,0.00012267,2]
[420139016,1775712641281,-500.0,0.00012267,2]
[420139017,1775712641290,-574.31181596,0.00012267,2]
[420139018,1775712641299,-182.82419012,0.00012267,2]
[420139019,1775712641308,-150.0,0.00012267,2]
[420139020,1775712641317,-500.0,0.00012267,2]
[420139021,1775712641326,-500.0,0.00012267,2]
[420139022,1775712641336,-500.0,0.00012267,2]
[420139023,1775712641345,-500.0,0.00012267,2]
[420139024,1775712641354,-500.0,0.00012267,2]
[420139025,1775712641363,-500.0,0.00012267,2]
[420139026,1775712641372,-500.0,0.00012267,2]
[420139027,1775712641381,-350.0,0.00012267,2]
[420139028,1775712641390,-500.0,0.00012267,2]
[420139029,1775712641399,-500.0,0.00012267,2]
[420139030,1775712641409,-500.0,0.00012267,2]
[420139031,1775712641418,-500.0,0.00012267,2]
[420139032,1775712641428,-500.0,0.00012267,2]
[420139033,1775712641437,-500.0,0.00012267,2]
[420139034,1775712641446,-500.0,0.00012267,2]
[420139035,1775712641455,-500.0,0.00012267,2]
[420139036,1775712641464,-500.0,0.00012267,2]
[420139037,1775712641474,-500.0,0.00012267,2]
[420139038,1775712641483,-500.0,0.00012267,2]
[420139039,1775712641492,-500.0,0.00012267,2]
[420139040,1775712641501,-500.0,0.00012267,2]
[420139041,1775712641511,-500.0,0.00012267,2]
[420139042,1775712641520,-500.0,0.00012267,2]
[420139043,1775712641530,-500.0,0.00012267,2]
[420139044,1775712641539,-500.0,0.00012267,2]
[420139045,1775712641548,-500.0,0.00012267,2]
[420139046,1775712641557,-500.0,0.00012267,2]
[420139047,1775712641566,-500.0,0.00012267,2]
[420139048,1775712641575,-500.0,0.00012267,2]
[420139049,1775712641584,-500.0,0.00012267,2]
[420139050,1775712641593,-500.0,0.00012267,2]
[420139051,1775712641602,-500.0,0.00012267,2]
[420139052,1775712641612,-500.0,0.00012267,2]
[420139053,1775712641620,-500.0,0.00012267,2]
[420139054,1775712641630,-500.0,0.00012267,2]
[420139055,1775712641639,-245.24854992,0.00012267,2]
[420139056,1775712641649,-234993.23723898,0.00012268,2]
[420139057,1775712641717,-300.0,0.00012268,2]
[420139058,1775712645985,-17526.72290876,0.00012268,2]
[420139059,1775712646300,-1063.10051189,0.00012268,2]
[420139127,1775712650218,-15203.16982243,0.00012268,2]
[420139128,1775712650233,-478.51655685,0.00012268,2]
[420139129,1775712650245,-1248.77317407,0.00012268,2]
[420139130,1775712650290,-1382.08232065,0.00012268,2]
[420139148,1775713190303,159.87,5.692e-05,2]
[420139149,1775713190511,159.87,7.115e-05,2]
[420139150,1775713190708,159.87,8.538e-05,2]
[420139151,1775713327070,169.34,8.884e-05,2]
[420139153,1775713533392,1116.0,9.025e-05,2]
[420139154,1775713537928,504.9442873,8.639e-05,2]
[420139155,1775713537951,611.0557127,8.639e-05,2]
[420139156,1775713542728,1116.0,8.639e-05,2]
[420139157,1775713547249,890.97143095,8.639e-05,2]
[420139158,1775713547274,225.02856905,8.639e-05,2]
[420139166,1775713832399,-1116.0,9.5e-05,2]
[420139167,1775713832408,-245.68869402,9.713e-05,2]
[420139168,1775713832429,-4.31130598,9.713e-05,2]
[420139169,1775713832438,-233.76698089,9.926e-05,2]
[420139170,1775713832448,-141.70937641,9.961e-05,2]
[420139171,1775713832460,-18.16062359,9.961e-05,2]
[420139172,1775713832470,-513.5758726,0.0001,2]
[420139173,1775713832482,-602.4241274,0.0001,2]
[420139174,1775713832491,-250.0,0.0001045,2]
[420139175,1775713832500,-250.0,0.0001045,2]
[420139176,1775713832508,-1116.0,0.00010526,2]
[420139177,1775713832518,-150.0,0.00011075,2]
[420139178,1775713832527,-1116.0,0.0001108,2]
[420139179,1775713832537,-150.0,0.000112,2]
[420139180,1775713832547,-500.0,0.00011205,2]
[420139181,1775713832556,-427.38845478,0.00011307,2]
[420139182,1775713832633,-72.61154522,0.00011307,2]
[420139183,1775713832642,-1200.0,0.00011384,2]
[420139184,1775713832651,-1600.0,0.00011385,2]
[420139185,1775713833027,-159.87,0.00011385,2]
[420139186,1775713833043,-164.26,0.00011501,2]
[420139187,1775713833052,-500.0,0.00011562,2]
[420139188,1775713833062,-1116.0,0.00011663,2]
[420139189,1775713833072,-259.63,0.0001183,2]
[420139190,1775713833081,-20137.89506803,0.00011848,2]
[420139191,1775713833091,-3647.79528918,0.00011849,2]
[420139192,1775713833100,-1500.0,0.000119,4]
[420139193,1775713833110,-500.0,0.00011947,2]
[420139194,1775713833120,-500.0,0.00011947,2]
[420139195,1775713833130,-500.0,0.00011947,2]
[420139196,1775713833140,-500.0,0.00011947,2]
[420139197,1775713833149,-500.0,0.00011947,2]
[420139198,1775713833159,-626.27270814,0.00011947,2]
[420139199,1775713833169,-500.0,0.00011947,2]
[420139200,1775713833180,-500.0,0.00011947,2]
[420139201,1775713833190,-500.0,0.00011947,2]
[420139202,1775713833199,-500.0,0.00011947,2]
[420139203,1775713833208,-19085.83123098,0.00011948,2]
[420139204,1775713833220,-30224.72903623,0.00011948,2]
[420139205,1775713833232,-49270.05710727,0.00011948,2]
[420139206,1775713833245,-1254.41808677,0.00011948,2]
[420139207,1775713833683,-310.55827694,0.00011948,2]
[420139209,1775713833695,-334.02485,0.00011948,2]
[420139216,1775713838568,-14505.88329736,0.00011948,2]
[420139358,1775713840701,-809.14088619,0.00011948,2]
[420139359,1775713840713,-184370.21012826,0.00011948,2]
[420139360,1775713840722,-1986.919,0.00011948,2]
[420139361,1775713840732,-500.0,0.00011973,2]
[420139362,1775713840742,-500.0,0.00011973,2]
[420139363,1775713840751,-500.0,0.00011973,2]
[420139364,1775713840760,-500.0,0.00011973,2]
[420139365,1775713840769,-16840.12834389,0.00011973,2]
[420139366,1775713840778,-161152.52,0.00012048,2]
[420139367,1775713840787,-4516.7795,0.0001205,2]
[420139368,1775713840796,-200.0,0.0001206,2]
[420139369,1775713840805,-151.0,0.00012265,2]
[420139370,1775713840815,-26586.765815,0.00012268,2]
[420139371,1775713840824,-3036.0532785,0.00012268,2]
[420139372,1775713840834,-200.0,0.00012268,2]
[420139373,1775713840843,-2743.0255779,0.00012268,2]
[420139374,1775713840853,-200.0,0.00012268,2]
[420139375,1775713840862,-86615.7657743,0.00012268,2]
[420139376,1775713840871,-900.14865,0.00012268,2]
[420139377,1775713840880,-200.0,0.00012268,2]
[420139378,1775713840890,-900.14865,0.00012268,2]
[420139379,1775713840899,-900.14865,0.00012268,2]
[420139380,1775713840908,-188.868258,0.00012268,2]
[420139381,1775713840918,-900.14865,0.00012268,2]
[420139382,1775713840928,-188.868258,0.00012268,2]
[420139383,1775713840938,-188.868258,0.00012268,2]
[420139384,1775713840947,-188.868258,0.00012268,2]
[420139385,1775713840957,-183.044736,0.00012268,2]
[420139386,1775713840967,-183.044736,0.00012268,2]
[420139387,1775713840976,-183.044736,0.00012268,2]
[420139388,1775713840986,-183.044736,0.00012268,2]
[420139389,1775713840995,-909.077397,0.00012268,2]
[420139390,1775713841005,-909.077397,0.00012268,2]
[420139391,1775713841015,-909.077397,0.00012268,2]
[420139392,1775713841024,-909.077397,0.00012268,2]
[420139393,1775713841033,-151.0,0.00012268,2]
[420139394,1775713841043,-151.0,0.00012268,2]
[420139395,1775713841052,-500.0,0.00012268,2]
[420139396,1775713841061,-151.0,0.00012268,2]
[420139397,1775713841071,-151.0,0.00012268,2]
[420139398,1775713841080,-159.385593,0.00012268,2]
[420139399,1775713841090,-151.0,0.00012268,2]
[420139400,1775713841100,-151.0,0.00012268,2]
[420139401,1775713841109,-200.0,0.00012268,2]
[420139402,1775713841119,-159.0,0.00012268,3]
[420139403,1775713841128,-20137.89506802,0.00012271,2]
[420139404,1775713841138,-1116.0,0.00012277,2]
[420139405,1775713841148,-16840.1283438,0.00012382,2]
[420139406,1775713841157,-200.0,0.00012391,2]
[420139407,1775713841166,-200.0,0.00012391,2]
[420139408,1775713841176,-200.0,0.00012391,2]
[420139409,1775713841186,-200.0,0.00012391,2]
[420139410,1775713841195,-3647.79528911,0.00012428,2]
[420139411,1775713841204,-164.26,0.0001245,2]
[420139412,1775713841214,-173.2658,0.000125,2]
[420139413,1775713841223,-200.0,0.00012515,2]
[420139414,1775713841233,-200.0,0.00012515,2]
[420139415,1775713841243,-200.0,0.00012515,2]
[420139416,1775713841253,-200.0,0.00012515,2]
[420139417,1775713841263,-176.20779835,0.00012521,2]
[420139418,1775713841273,-1000.0,0.00012521,2]
[420139419,1775713841282,-1000.0,0.00012521,2]
[420139420,1775713841292,-1680.0,0.00012522,2]
[420139421,1775713841301,-151.0,0.00012543,2]
[420139422,1775713841311,-151.0,0.00012543,2]
[420139423,1775713841321,-151.231694,0.00012543,2]
[420139424,1775713841330,-299.531417,0.00012543,2]
[420139425,1775713841339,-299.531417,0.00012543,2]
[420139426,1775713841349,-299.531417,0.00012543,2]
[420139427,1775713841358,-299.531417,0.00012543,2]
[420139428,1775713841367,-151.0,0.00012547,2]
[420139429,1775713841377,-250.36870244,0.00012552,2]
[420139430,1775713841387,-500.0,0.00012556,2]
[420139431,1775713841396,-200.0,0.0001264,2]
[420139432,1775713841405,-200.0,0.0001264,2]
[420139433,1775713841415,-200.0,0.0001264,2]
[420139434,1775713841425,-200.0,0.0001264,2]
[420139435,1775713841435,-152.0,0.0001269,3]
[420139436,1775713841444,-20137.89506802,0.00012694,2]
[420139437,1775713841454,-157.60106223,0.00012737,2]
[420139438,1775713841464,-200.0,0.00012766,2]
[420139439,1775713841473,-200.0,0.00012766,2]
[420139440,1775713841483,-200.0,0.00012766,2]
[420139441,1775713841493,-200.0,0.00012766,2]
[420139442,1775713841502,-427.33,0.00012784,2]
[420139443,1775713841512,-399.48807374,0.00012785,2]
[420139444,1775713841521,-16840.1283438,0.00012791,2]
[420139445,1775713841531,-900.14865,0.00012791,2]
[420139446,1775713841540,-900.14865,0.00012791,2]
[420139447,1775713841550,-900.14865,0.00012791,2]
[420139448,1775713841559,-188.868258,0.00012791,2]
[420139449,1775713841568,-900.14865,0.00012791,2]
[420139450,1775713841578,-188.868258,0.00012791,2]
[420139451,1775713841587,-188.868258,0.00012791,2]
[420139452,1775713841596,-188.868258,0.00012791,2]
[420139453,1775713841607,-183.044736,0.00012791,2]
[420139454,1775713841616,-183.044736,0.00012791,2]
[420139455,1775713841626,-183.044736,0.00012791,2]
[420139456,1775713841636,-183.044736,0.00012791,2]
[420139457,1775713841645,-909.077397,0.00012791,2]
[420139458,1775713841655,-909.077397,0.00012791,2]
[420139459,1775713841664,-909.077397,0.00012791,2]
[420139460,1775713841674,-909.077397,0.00012791,2]
[420139461,1775713841683,-151.0,0.00012791,2]
[420139462,1775713841692,-151.0,0.00012791,2]
[420139463,1775713841701,-151.0,0.00012791,2]
[420139464,1775713841711,-151.0,0.00012791,2]
[420139465,1775713841720,-1600.0,0.00012808,2]
[420139466,1775713841729,-1000.0,0.00012861,2]
[420139467,1775713841738,-427.33,0.00012911,2]
[420139468,1775713841747,-1116.0,0.00012923,2]
[420139469,1775713841757,-415.55,0.00012956,2]
[420139470,1775713841767,-250.0,0.00013,2]
[420139471,1775713841775,-3647.79528911,0.00013006,2]
[420139472,1775713841786,-1483.9,0.00013043,2]
[420139473,1775713841795,-1000.0,0.00013065,2]
[420139474,1775713841804,-1500.0,0.00013068,2]
[420139475,1775713841814,-1500.0,0.00013068,2]
[420139476,1775713841822,-1000.0,0.00013094,2]
[420139477,1775713841831,-20137.89506802,0.00013116,2]
[420139478,1775713841841,-160.0,0.00013143,2]
[420139479,1775713841850,-1191.11104075,0.00013171,2]
[420139480,1775713841860,-500.0,0.00013171,2]
[420139481,1775713841869,-174.61919141,0.00013171,2]
[420139482,1775713841879,-1044.33911228,0.00013171,2]
[420139483,1775713841888,-601.3376128,0.00013171,2]
[420139484,1775713841898,-578.20924308,0.00013171,2]
[420139485,1775713841907,-1500.0,0.00013171,2]
[420139487,1775713841916,-1500.0,0.00013171,2]
[420139489,1775713841925,-1500.0,0.00013171,2]
[420139490,1775713841935,-1500.0,0.00013171,2]
[420139491,1775713841944,-1500.0,0.00013171,2]
[420139492,1775713841954,-743.50770149,0.00013171,2]
[420139493,1775713841963,-151.0,0.00013171,2]
[420139494,1775713841973,-174.61919141,0.00013171,2]
[420139495,1775713841982,-168.70890056,0.00013171,2]
[420139496,1775713841991,-688.68986639,0.00013171,2]
[420139497,1775713842001,-240.62877446,0.00013171,2]
[420139498,1775713842011,-16840.1283438,0.000132,2]
[420139499,1775713842020,-200.0,0.00013225,2]
[420139500,1775713842030,-500.0,0.00013226,2]
[420139501,1775713842040,-151.0,0.00013226,2]
[420139502,1775713842049,-159.0,0.00013241,3]
[420139503,1775713842059,-175.098174,0.00013263,2]
[420139504,1775713842068,-160.0,0.00013263,2]
[420139505,1775713842077,-906.462734,0.00013263,2]
[420139506,1775713842087,-1652.925468,0.00013263,2]
[420139507,1775713842097,-1000.0,0.00013269,2]
[420139508,1775713842107,-578.36645902,0.00013269,2]
[420139509,1775713842116,-500.0,0.00013281,2]
[420139510,1775713842127,-151.0,0.00013281,2]
[420139511,1775713842136,-151.0,0.0001331,2]
[420139512,1775713842146,-151.0,0.0001331,2]
[420139513,1775713842155,-299.531417,0.0001331,2]
[420139514,1775713842165,-299.531417,0.0001331,2]
[420139515,1775713842174,-299.531417,0.0001331,2]
[420139516,1775713842184,-299.531417,0.0001331,2]
[420139517,1775713842194,-160.0,0.00013324,2]
[420139518,1775713842203,-262.724421,0.00013324,2]
[420139519,1775713842213,-365.448843,0.00013324,2]
[420139520,1775713842222,-225.305242,0.00013324,2]
[420139521,1775713842231,-160.732568,0.00013328,2]
[420139522,1775713842240,-160.0,0.00013331,2]
[420139523,1775713842249,-920.925258,0.00013331,2]
[420139524,1775713842258,-1681.850516,0.00013331,2]
[420139525,1775713842267,-500.0,0.00013336,2]
[420139526,1775713842276,-151.0,0.00013336,2]
[420139527,1775713842286,-500.0,0.00013391,2]
[420139528,1775713842295,-151.0,0.00013391,2]
[420139529,1775713842305,-164.26,0.00013399,2]
[420139530,1775713842315,-3240.0,0.00013425,2]
[420139531,1775713842324,-151.0,0.00013425,2]
[420139532,1775713842334,-151.0,0.00013425,2]
[420139533,1775713842344,-500.0,0.00013446,2]
[420139534,1775713842353,-151.0,0.00013446,2]
[420139535,1775713842363,-3190.0,0.00013449,2]
[420139536,1775713842373,-2728.0,0.0001349,2]
[420139537,1775713842383,-2728.0,0.00013494,2]
[420139538,1775713842393,-3674.96,0.00013495,2]
[420139539,1775713842403,-151.0,0.00013495,2]
[420139540,1775713842412,-151.0,0.00013495,2]
[420139541,1775713842421,-188.868258,0.00013498,2]
[420139542,1775713842431,-188.868258,0.00013498,2]
[420139543,1775713842440,-188.868258,0.00013498,2]
[420139544,1775713842450,-188.868258,0.00013498,2]
[420139545,1775713842460,-183.044736,0.00013498,2]
[420139546,1775713842470,-183.044736,0.00013498,2]
[420139547,1775713842479,-183.044736,0.00013498,2]
[420139548,1775713842488,-183.044736,0.00013498,2]
[420139549,1775713842497,-909.077397,0.00013498,2]
[420139550,1775713842506,-909.077397,0.00013498,2]
[420139551,1775713842515,-909.077397,0.00013498,2]
[420139552,1775713842525,-909.077397,0.00013498,2]
[420139553,1775713842534,-2728.0,0.00013498,2]
[420139554,1775713842543,-500.0,0.00013501,2]
[420139555,1775713842552,-151.0,0.00013501,2]
[420139556,1775713842561,-150.0,0.00013525,2]
[420139557,1775713842571,-2728.0,0.00013534,2]
[420139558,1775713842580,-900.14865,0.00013534,2]
[420139559,1775713842590,-900.14865,0.00013534,2]
[420139560,1775713842599,-900.14865,0.00013534,2]
[420139561,1775713842608,-900.14865,0.00013534,2]
[420139562,1775713842618,-3000.0,0.00013534,2]
[420139563,1775713842627,-2728.0,0.00013538,2]
[420139564,1775713842636,-20137.89506802,0.00013539,2]
[420139565,1775713842646,-3190.0,0.00013542,2]
[420139566,1775713842655,-500.0,0.00013556,2]
[420139567,1775713842664,-151.0,0.00013556,2]
[420139568,1775713842673,-2728.0,0.00013572,2]
[420139569,1775713842682,-3647.79528911,0.00013585,2]
[420139570,1775713842691,-287.57399218,0.00013599,2]
[420139571,1775713842701,-538.88876058,0.00013599,2]
[420139572,1775713842710,-2728.0,0.000136,2]
[420139573,1775713842719,-1116.0,0.00013604,2]
[420139574,1775713842730,-16840.1283438,0.00013609,2]
[420139575,1775713842739,-503.61549382,0.00013609,3]
[420139576,1775713842748,-500.0,0.00013611,2]
[420139577,1775713842757,-151.0,0.00013611,2]
[420139578,1775713842766,-1000.0,0.00013616,2]
[420139579,1775713842774,-151.0,0.0001363,2]
[420139580,1775713842784,-151.0,0.0001363,2]
[420139581,1775713842793,-2728.0,0.0001363,2]
[420139582,1775713842802,-500.0,0.00013666,2]
[420139583,1775713842812,-151.0,0.00013666,2]
[420139584,1775713842822,-33956.0,0.00013671,2]
[420139585,1775713842831,-499.82293531,0.00013689,2]
[420139586,1775713842840,-151.0,0.00013698,2]
[420139587,1775713842850,-631.5,0.00013698,2]
[420139588,1775713842860,-500.0,0.00013698,2]
[420139589,1775713842869,-500.0,0.00013698,2]
[420139590,1775713842878,-500.0,0.00013698,2]
[420139591,1775713842887,-500.0,0.00013698,2]
[420139592,1775713842896,-500.0,0.00013698,2]
[420139593,1775713842906,-500.0,0.00013698,2]
[420139594,1775713842915,-500.0,0.00013698,2]
[420139595,1775713842924,-500.0,0.00013698,2]
[420139596,1775713842933,-500.0,0.00013698,2]
[420139597,1775713842943,-500.0,0.00013698,2]
[420139598,1775713842952,-500.0,0.00013698,2]
[420139599,1775713842961,-500.0,0.00013698,2]
[420139600,1775713842971,-500.0,0.00013698,2]
[420139601,1775713842980,-500.0,0.00013698,2]
[420139602,1775713842991,-500.0,0.00013698,2]
[420139603,1775713843000,-219.90601371,0.00013698,2]
[420139604,1775713843010,-500.0,0.00013698,2]
[420139605,1775713843020,-500.0,0.00013698,2]
[420139606,1775713843029,-500.0,0.00013698,2]
[420139607,1775713843039,-500.0,0.00013698,2]
[420139608,1775713843049,-500.0,0.00013698,2]
[420139609,1775713843060,-500.0,0.00013698,2]
[420139611,1775713843070,-500.0,0.00013698,2]
[420139613,1775713843081,-532.24925946,0.00013698,2]
[420139615,1775713843092,-500.0,0.00013698,2]
[420139617,1775713843104,-500.0,0.00013698,2]
[420139618,1775713843115,-500.0,0.00013698,2]
[420139619,1775713843125,-155.415,0.00013698,2]
[420139620,1775713843135,-500.0,0.00013698,2]
[420139621,1775713843145,-500.0,0.00013698,2]
[420139622,1775713843154,-151.0,0.00013698,2]
[420139623,1775713843164,-151.0,0.00013698,2]
[420139624,1775713843174,-299.531417,0.00013698,2]
[420139625,1775713843184,-299.531417,0.00013698,2]
[420139626,1775713843193,-299.531417,0.00013698,2]
[420139627,1775713843203,-299.531417,0.00013698,2]
[420139628,1775713843213,-500.0,0.00013698,2]
[420139629,1775713843223,-500.0,0.00013698,2]
[420139630,1775713843233,-500.0,0.00013698,2]
[420139631,1775713843243,-500.0,0.00013698,2]
[420139632,1775713843253,-500.0,0.00013698,2]
[420139633,1775713843262,-500.0,0.00013698,2]
[420139634,1775713843271,-500.0,0.00013698,2]
[420139635,1775713843281,-500.0,0.00013698,2]
[420139636,1775713843291,-500.0,0.00013698,2]
[420139637,1775713843301,-500.0,0.00013698,2]
[420139638,1775713843311,-500.0,0.00013698,2]
[420139639,1775713843320,-500.0,0.00013698,2]
[420139640,1775713843330,-179.59342446,0.00013698,2]
[420139641,1775713843340,-500.0,0.00013698,2]
[420139642,1775713843350,-500.0,0.00013698,2]
[420139643,1775713843361,-500.0,0.00013698,2]
[420139644,1775713843371,-500.0,0.00013698,2]
[420139645,1775713843380,-900.14865,0.00013698,2]
[420139646,1775713843391,-900.14865,0.00013698,2]
[420139647,1775713843400,-900.14865,0.00013698,2]
[420139648,1775713843691,-188.868258,0.00013698,2]
[420139649,1775713843742,-900.14865,0.00013698,2]
[420139650,1775713843752,-188.868258,0.00013698,2]
[420139651,1775713843762,-188.868258,0.00013698,2]
[420139652,1775713843771,-188.868258,0.00013698,2]
[420139653,1775713843782,-183.044736,0.00013698,2]
[420139654,1775713843792,-183.044736,0.00013698,2]
[420139655,1775713843802,-183.044736,0.00013698,2]
[420139656,1775713843813,-183.044736,0.00013698,2]
[420139658,1775713843822,-909.077397,0.00013698,2]
[420139660,1775713843832,-909.077397,0.00013698,2]
[420139662,1775713843842,-909.077397,0.00013698,2]
[420139664,1775713843852,-909.077397,0.00013698,2]
[420139666,1775713843861,-151.0,0.00013698,2]
[420139668,1775713843872,-153.308735,0.00013698,2]
[420139669,1775713843882,-2120.0,0.00013698,5]
[420139671,1775713843893,-180.0,0.00013699,2]
[420139672,1775713843903,-150.0,0.00013699,2]
[420139673,1775713843913,-150.0,0.00013699,2]
[420139674,1775713843923,-166.66,0.00013699,2]
[420139675,1775713843933,-200.0,0.00013699,2]
[420139676,1775713843945,-151.0,0.00013699,2]
[420139677,1775713843955,-217.211063,0.00013699,2]
[420139678,1775713843966,-217.211063,0.00013699,2]
[420139679,1775713843977,-217.211063,0.00013699,2]
[420139680,1775713843987,-217.211063,0.00013699,2]
[420139681,1775713843996,-166.331613,0.00013699,2]
[420139682,1775713844007,-166.331613,0.00013699,2]
[420139683,1775713844016,-166.331613,0.00013699,2]
[420139684,1775713844027,-166.331613,0.00013699,2]
[420139685,1775713844038,-151.0,0.00013699,2]
[420139686,1775713844049,-151.0,0.00013699,2]
[420139687,1775713844060,-151.0,0.00013699,2]
[420139688,1775713844071,-151.0,0.00013699,2]
[420139689,1775713844082,-151.0,0.00013699,2]
[420139690,1775713844093,-151.0,0.00013699,2]
[420139691,1775713844104,-151.0,0.00013699,2]
[420139692,1775713844115,-151.0,0.00013699,2]
[420139693,1775713844125,-240.314683,0.00013699,2]
[420139694,1775713844135,-240.314683,0.00013699,2]
[420139695,1775713844145,-240.314683,0.00013699,2]
[420139696,1775713844155,-151.112342,0.00013699,2]
[420139697,1775713844165,-240.314683,0.00013699,2]
[420139698,1775713844175,-151.0,0.00013699,2]
[420139699,1775713844185,-151.0,0.00013699,2]
[420139700,1775713844195,-151.0,0.00013699,2]
[420139701,1775713844206,-347.081848,0.00013699,2]
[420139702,1775713844215,-151.0,0.00013699,2]
[420139703,1775713844224,-151.0,0.00013699,2]
[420139704,1775713844234,-151.0,0.00013699,2]
[420139705,1775713844244,-347.081848,0.00013699,2]
[420139706,1775713844254,-151.0,0.00013699,2]
[420139707,1775713844264,-151.0,0.00013699,2]
[420139708,1775713844274,-156.516313,0.00013699,2]
[420139709,1775713844284,-347.081848,0.00013699,2]
[420139710,1775713844294,-151.0,0.00013699,2]
[420139711,1775713844304,-151.0,0.00013699,2]
[420139712,1775713844313,-151.0,0.00013699,2]
[420139713,1775713844323,-347.081848,0.00013699,2]
[420139714,1775713844333,-151.0,0.00013699,2]
[420139715,1775713844342,-151.0,0.00013699,2]
[420139716,1775713844352,-151.0,0.00013699,2]
[420139717,1775713844362,-151.0,0.00013699,2]
[420139718,1775713844372,-151.0,0.00013699,2]
[420139719,1775713844382,-151.0,0.00013699,2]
[420139720,1775713844391,-151.0,0.00013699,2]
[420139721,1775713844401,-151.0,0.00013699,2]
[420139722,1775713844411,-151.0,0.00013699,2]
[420139723,1775713844421,-328.802437,0.00013699,2]